[Event "FIDE WCCC Open-12 2024"]
[Site "Montesilvano"]
[Date "2024.11.18"]
[Round "2.21"]
[White "Hallmundarson, Birkir"]
[Black "Karthi, Jashith"]
[Result "0-1"]
[ECO "D26"]
[WhiteElo "1914"]
[BlackElo "2073"]
[PlyCount "82"]
[EventDate "2024.11.18"]
[EventType "swiss"]
[EventCountry "ITA"]
[TimeControl "5400+30"]

1. Nf3 {[%emt 0:00:02]} d5 {[%emt 0:00:10]} 2. d4 {[%emt 0:00:04]} Nf6 {[%emt 0:00:08]} 3. c4 {[%emt 0:00:04]} e6 {[%emt 0:00:06]} 4. Nc3 {[%emt 0:00:04]} dxc4 {[%emt 0:01:43]} 5. e3 {[%emt 0:00:52]} a6 {[%emt 0:00:33]} 6. Bxc4 {[%emt 0:00:12]} b5 {[%emt 0:00:07]} 7. Bb3 {[%emt 0:00:17]} Bb7 {[%emt 0:00:08]} 8. O-O {[%emt 0:01:08]} Nbd7 {[%emt 0:00:57]} 9. Qe2 {[%emt 0:02:18]} Be7 {[%emt 0:00:22]} 10. Rd1 {[%emt 0:00:47]} O-O {[%emt 0:01:21]} 11. a3 {[%emt 0:13:26]} c5 {[%emt 0:09:02]} 12. dxc5 {[%emt 0:04:44]} Qc7 {[%emt 0:02:53]} 13. Ba2 {[%emt 0:18:38]} Bxc5 {[%emt 0:05:29]} 14. b4 {[%emt 0:20:57]} Bd6 {[%emt 0:00:54]} 15. Bb2 {[%emt 0:09:35]} Bxf3 {[%emt 0:00:22]} 16. Qxf3 {[%emt 0:00:04]} Bxh2+ {[%emt 0:00:09]} 17. Kh1 {[%emt 0:00:02]} Ne5 {[%emt 0:05:56]} 18. Qe2 {[%emt 0:01:00]} Neg4 {[%emt 0:02:14]} 19. Rac1 {[%emt 0:02:23]} Bg1 {[%emt 0:01:54]} 20. g3 {[%emt 0:05:09]} Bxf2 {[%emt 0:04:11]} 21. Ne4 {[%emt 0:00:44]} Qb7 {[%emt 0:02:47]} 22. Bd5 {[%emt 0:00:22]} Nxd5 {[%emt 0:11:17]} 23. Rxd5 {[%emt 0:03:38]} exd5 {[%emt 0:05:52]} 24. Nxf2 {[%emt 0:01:48]} d4+ {[%emt 0:00:15]} 25. Kg1 {[%emt 0:00:48]} Nxe3 {[%emt 0:00:10]} 26. Ng4 {[%emt 0:00:35]} Qe4 {[%emt 0:00:52]} 27. Nh2 {[%emt 0:05:08]} Rac8 {[%emt 0:00:22]} 28. Rc5 {[%emt 0:01:28]} Rxc5 {[%emt 0:00:08]} 29. bxc5 {[%emt 0:00:10]} d3 {[%emt 0:00:08]} 30. Qf2 {[%emt 0:01:08]} Nd1 {[%emt 0:00:07]} 31. Qd4 {[%emt 0:00:29]} Qe1+ {[%emt 0:00:17]} 32. Nf1 {[%emt 0:00:06]} Nxb2 {[%emt 0:00:05]} 33. Qxb2 {[%emt 0:00:11]} Qe2 {[%emt 0:00:06]} 34. Qd4 {[%emt 0:00:07]} Re8 {[%emt 0:01:46]} 35. c6 {[%emt 0:01:24]} d2 {[%emt 0:00:08]} 36. Nxd2 {[%emt 0:01:46]} Qe3+ {[%emt 0:00:40]} 37. Qxe3 {[%emt 0:00:09]} Rxe3 {[%emt 0:00:04]} 38. a4 {[%emt 0:00:31]} Rxg3+ {[%emt 0:00:12]} 39. Kf2 {[%emt 0:00:07]} Rc3 {[%emt 0:00:05]} 40. axb5 {[%emt 0:00:35]} axb5 {[%emt 0:00:05]} 41. Ke2 {[%emt 0:00:22]} Rxc6 {[%emt 0:00:03]} 0-1

[Event "FIDE WCCC Open-12 2024"]
[Site "Montesilvano"]
[Date "2024.11.18"]
[Round "2.22"]
[White "Baturin-Vinogradov, Miroslav"]
[Black "Vinales Gonzalez, Enzo Mathias"]
[Result "1-0"]
[ECO "E66"]
[WhiteElo "2048"]
[BlackElo "1903"]
[PlyCount "59"]
[EventDate "2024.11.18"]
[EventType "swiss"]
[EventCountry "ITA"]
[TimeControl "5400+30"]

1. d4 {[%emt 0:00:06]} Nf6 {[%emt 0:00:05]} 2. c4 {[%emt 0:00:21]} g6 {[%emt 0:00:10]} 3. g3 {[%emt 0:00:50]} Bg7 {[%emt 0:00:09]} 4. Bg2 {[%emt 0:00:27]} O-O {[%emt 0:00:08]} 5. Nc3 {[%emt 0:00:26]} d6 {[%emt 0:00:09]} 6. Nf3 {[%emt 0:00:54]} c5 {[%emt 0:00:07]} 7. O-O {[%emt 0:00:50]} Nc6 {[%emt 0:00:04]} 8. d5 {[%emt 0:03:20]} Na5 {[%emt 0:00:05]} 9. Nd2 {[%emt 0:00:36]} e6 {[%emt 0:00:05]} 10. Qc2 {[%emt 0:00:52]} exd5 {[%emt 0:00:48]} 11. cxd5 {[%emt 0:00:33]} Bf5 {[%emt 0:02:23]} 12. e4 {[%emt 0:00:22]} Bd7 {[%emt 0:00:07]} 13. b3 {[%emt 0:01:45]} b5 {[%emt 0:03:45]} 14. Bb2 {[%emt 0:01:36]} Rc8 {[%emt 0:07:55]} 15. Rfe1 {[%emt 0:02:55]} Qb6 {[%emt 0:02:27]} 16. Rac1 {[%emt 0:03:27]} Ng4 {[%emt 0:05:04]} 17. Nd1 {[%emt 0:17:35]} Bxb2 {[%emt 0:18:23]} 18. Qxb2 {[%emt 0:01:02]} Ne5 {[%emt 0:00:10]} 19. Bf1 {[%emt 0:07:36]} f5 {[%emt 0:04:30]} 20. exf5 {[%emt 0:12:35]} Bxf5 {[%emt 0:09:27]} 21. Ne3 {[%emt 0:07:27]} Bd7 {[%emt 0:06:40]} 22. f4 {[%emt 0:18:51]} Ng4 {[%emt 0:02:32]} 23. Nxg4 {[%emt 0:05:23]} Bxg4 {[%emt 0:00:14]} 24. Ne4 {[%emt 0:01:00]} Bf3 {[%emt 0:02:54]} 25. Qf2 {[%emt 0:00:27]} Bg4 {[%emt 0:05:43]} 26. h3 {[%emt 0:02:04]} Bf5 {[%emt 0:00:57]} 27. Ng5 {[%emt 0:01:41]} Rfe8 {[%emt 0:10:44]} 28. g4 {[%emt 0:00:45]} Bd7 {[%emt 0:00:12]} 29. Qh4 {[%emt 0:01:10]} h5 {[%emt 0:02:40]} 30. gxh5 {[%emt 0:01:25]} 1-0

[Event "FIDE WCCC Open-12 2024"]
[Site "Montesilvano"]
[Date "2024.11.18"]
[Round "2.23"]
[White "Tona, Leonardo"]
[Black "Bulgak, Damir"]
[Result "0-1"]
[ECO "D40"]
[WhiteElo "1906"]
[BlackElo "2044"]
[PlyCount "74"]
[EventDate "2024.11.18"]
[EventType "swiss"]
[EventCountry "ITA"]
[TimeControl "5400+30"]

1. d4 {[%emt 0:00:03]} Nf6 {[%emt 0:00:32]} 2. c4 {[%emt 0:00:21]} e6 {[%emt 0:00:14]} 3. Nc3 {[%emt 0:00:05]} d5 {[%emt 0:01:15]} 4. e3 {[%emt 0:00:15]} a6 {[%emt 0:01:39]} 5. Nf3 {[%emt 0:00:48]} dxc4 {[%emt 0:02:28]} 6. Bxc4 {[%emt 0:00:20]} b5 {[%emt 0:00:07]} 7. Bd3 {[%emt 0:03:07]} Bb7 {[%emt 0:01:20]} 8. a3 {[%emt 0:01:12]} c5 {[%emt 0:03:34]} 9. dxc5 {[%emt 0:07:32]} Bxc5 {[%emt 0:00:11]} 10. b4 {[%emt 0:00:25]} Bd6 {[%emt 0:03:35]} 11. Bb2 {[%emt 0:02:41]} O-O {[%emt 0:01:25]} 12. O-O {[%emt 0:01:01]} Qe7 {[%emt 0:00:35]} 13. Qe2 {[%emt 0:01:32]} Nbd7 {[%emt 0:00:14]} 14. e4 {[%emt 0:06:53]} Ne5 {[%emt 0:01:40]} 15. Nxe5 {[%emt 0:00:35]} Bxe5 {[%emt 0:00:07]} 16. f4 {[%emt 0:02:22]} Bd4+ {[%emt 0:01:28]} 17. Kh1 {[%emt 0:01:45]} e5 {[%emt 0:02:43]} 18. fxe5 {[%emt 0:07:38]} Qxe5 {[%emt 1:16:23]} 19. Rf5 {[%emt 0:02:36]} Qe6 {[%emt 0:00:00]} 20. Raf1 {[%emt 0:13:03]} Rae8 {[%emt 0:00:00]} 21. Nxb5 {[%emt 0:05:11]} Bxb2 {[%emt 0:00:00]} 22. Nc7 {[%emt 0:00:24]} Qd6 {[%emt 0:00:00]} 23. Nxe8 {[%emt 0:01:12]} Rxe8 {[%emt 0:00:00]} 24. Qxb2 {[%emt 0:15:25]} Qxd3 {[%emt 0:00:00]} 25. e5 {[%emt 0:00:55]} Bd5 {[%emt 0:00:00]} 26. R5f4 {[%emt 0:05:35]} Ne4 {[%emt 0:00:00]} 27. Rc1 {[%emt 0:04:54]} Qe3 {[%emt 0:00:00]} 28. Rf3 {[%emt 0:01:12]} Qg5 {[%emt 0:00:00]} 29. Rd3 {[%emt 0:01:37]} Nf2+ {[%emt 0:00:00]} 30. Qxf2 {[%emt 0:00:26]} Qxc1+ {[%emt 0:00:00]} 31. Qg1 {[%emt 0:00:04]} Bxg2+ {[%emt 0:00:00]} 32. Kxg2 {[%emt 0:00:18]} Qc2+ {[%emt 0:00:00]} 33. Qf2 {[%emt 0:00:16]} Qxd3 {[%emt 0:00:00]} 34. Qb2 {[%emt 0:00:23]} Re6 {[%emt 0:00:00]} 35. Qc1 {[%emt 0:00:11]} Qe2+ {[%emt 0:00:00]} 36. Kg3 {[%emt 0:00:32]} Rg6+ {[%emt 0:00:00]} 37. Kf4 {[%emt 0:00:10]} Rg4+ {[%emt 0:00:00]} 0-1

[Event "FIDE WCCC Open-12 2024"]
[Site "Montesilvano"]
[Date "2024.11.18"]
[Round "2.24"]
[White "Minga-Nagy, Abel Inti"]
[Black "Yang, Maxwell"]
[Result "1/2-1/2"]
[ECO "B50"]
[WhiteElo "2033"]
[BlackElo "1889"]
[PlyCount "61"]
[EventDate "2024.11.18"]
[EventType "swiss"]
[EventCountry "ITA"]
[TimeControl "5400+30"]

1. e4 {[%emt 0:00:06]} c5 {[%emt 0:00:07]} 2. Nf3 {[%emt 0:00:05]} d6 {[%emt 0:00:05]} 3. c3 {[%emt 0:00:04]} Nf6 {[%emt 0:00:10]} 4. h3 {[%emt 0:00:04]} Nc6 {[%emt 0:00:19]} 5. Bd3 {[%emt 0:00:13]} g6 {[%emt 0:05:30]} 6. Bc2 {[%emt 0:00:11]} Bg7 {[%emt 0:00:21]} 7. O-O {[%emt 0:00:35]} O-O {[%emt 0:00:14]} 8. d4 {[%emt 0:00:19]} Qc7 {[%emt 0:01:28]} 9. d5 {[%emt 0:02:42]} Na5 {[%emt 0:05:55]} 10. Bf4 {[%emt 0:04:48]} Nd7 {[%emt 0:02:01]} 11. Na3 {[%emt 0:04:01]} a6 {[%emt 0:00:54]} 12. Rc1 {[%emt 0:02:04]} b5 {[%emt 0:04:13]} 13. Bb1 {[%emt 0:00:52]} Qb6 {[%emt 0:08:12]} 14. Qd2 {[%emt 0:05:47]} Rb8 {[%emt 0:19:36]} 15. b4 {[%emt 0:07:17]} Nc4 {[%emt 0:05:39]} 16. Nxc4 {[%emt 0:00:13]} bxc4 {[%emt 0:00:10]} 17. bxc5 {[%emt 0:00:41]} Nxc5 {[%emt 0:00:50]} 18. Nd4 {[%emt 0:00:29]} Bd7 {[%emt 0:04:02]} 19. Bh6 {[%emt 0:03:18]} Qb2 {[%emt 0:12:31]} 20. Qe3 {[%emt 0:09:40]} e5 {[%emt 0:07:22]} 21. dxe6 {[%emt 0:02:15]} fxe6 {[%emt 0:00:53]} 22. Bxg7 {[%emt 0:00:35]} Kxg7 {[%emt 0:00:08]} 23. Nf3 {[%emt 0:01:02]} Qb6 {[%emt 0:03:03]} 24. Rfd1 {[%emt 0:04:11]} e5 {[%emt 0:02:36]} 25. Rd2 {[%emt 0:01:56]} Rf6 {[%emt 0:03:05]} 26. Rcd1 {[%emt 0:03:02]} Ba4 {[%emt 0:00:24]} 27. Re1 {[%emt 0:03:46]} Rbf8 {[%emt 0:02:20]} 28. Nh2 {[%emt 0:03:42]} Bd7 {[%emt 0:02:11]} 29. Red1 {[%emt 0:03:57]} Ba4 {[%emt 0:01:29]} 30. Re1 {[%emt 0:00:36]} Bd7 {[%emt 0:00:28]} 31. Red1 {[%emt 0:00:09]} 1/2-1/2

[Event "FIDE WCCC Open-12 2024"]
[Site "Montesilvano"]
[Date "2024.11.18"]
[Round "2.25"]
[White "Belyaletdinov, Leonard"]
[Black "Batbaatar, Baatar"]
[Result "1-0"]
[ECO "B53"]
[WhiteElo "1903"]
[BlackElo "2030"]
[PlyCount "81"]
[EventDate "2024.11.18"]
[EventType "swiss"]
[EventCountry "ITA"]
[TimeControl "5400+30"]

1. e4 {[%emt 0:00:01]} c5 {[%emt 0:00:04]} 2. Nf3 {[%emt 0:00:06]} d6 {[%emt 0:00:06]} 3. d4 {[%emt 0:00:04]} cxd4 {[%emt 0:00:08]} 4. Qxd4 {[%emt 0:01:08]} Nc6 {[%emt 0:00:21]} 5. Bb5 {[%emt 0:01:22]} Bd7 {[%emt 0:00:09]} 6. Bxc6 {[%emt 0:00:30]} Bxc6 {[%emt 0:00:06]} 7. O-O {[%emt 0:00:18]} e5 {[%emt 0:06:14]} 8. Qd3 {[%emt 0:01:45]} Nf6 {[%emt 0:05:12]} 9. Nc3 {[%emt 0:01:27]} Be7 {[%emt 0:05:54]} 10. Bg5 {[%emt 0:02:41]} Ng4 {[%emt 0:07:44]} 11. Bxe7 {[%emt 0:04:29]} Qxe7 {[%emt 0:00:16]} 12. h3 {[%emt 0:00:06]} Nf6 {[%emt 0:00:09]} 13. Nh4 {[%emt 0:01:34]} g6 {[%emt 0:06:46]} 14. Rad1 {[%emt 0:09:10]} Rd8 {[%emt 0:03:11]} 15. Qc4 {[%emt 0:41:11]} O-O {[%emt 0:08:21]} 16. g3 {[%emt 0:00:38]} Qd7 {[%emt 0:04:29]} 17. Kh2 {[%emt 0:01:52]} b5 {[%emt 0:05:41]} 18. Qb4 {[%emt 0:04:58]} a5 {[%emt 0:02:52]} 19. Qxa5 {[%emt 0:00:48]} Nxe4 {[%emt 0:03:05]} 20. Nxe4 {[%emt 0:01:39]} Bxe4 {[%emt 0:00:22]} 21. Rfe1 {[%emt 0:00:16]} Qc6 {[%emt 0:05:16]} 22. Qb4 {[%emt 0:01:28]} Bd5 {[%emt 0:02:18]} 23. Re3 {[%emt 0:00:38]} Be6 {[%emt 0:04:23]} 24. Rc3 {[%emt 0:00:21]} Qb6 {[%emt 0:01:07]} 25. Rd2 {[%emt 0:00:46]} d5 {[%emt 0:08:51]} 26. Rc5 {[%emt 0:00:32]} Rb8 {[%emt 0:00:20]} 27. Nf3 {[%emt 0:00:12]} f6 {[%emt 0:00:25]} 28. c3 {[%emt 0:04:36]} Rf7 {[%emt 0:04:33]} 29. Ne1 {[%emt 0:04:12]} Ra7 {[%emt 0:02:10]} 30. b3 {[%emt 0:01:36]} Rc7 {[%emt 0:00:10]} 31. Nd3 {[%emt 0:00:14]} Bf7 {[%emt 0:02:45]} 32. a4 {[%emt 0:02:04]} Rxc5 {[%emt 0:01:47]} 33. a5 {[%emt 0:00:32]} Qc7 {[%emt 0:00:37]} 34. Qxc5 {[%emt 0:00:41]} Qxa5 {[%emt 0:00:47]} 35. Nb4 {[%emt 0:00:09]} Qa3 {[%emt 0:07:34]} 36. Qc7 {[%emt 0:00:43]} Rf8 {[%emt 0:03:40]} 37. Nxd5 {[%emt 0:00:19]} Be6 {[%emt 0:00:28]} 38. Qc6 {[%emt 0:01:10]} Bf5 {[%emt 0:00:23]} 39. Nxf6+ {[%emt 0:01:01]} Kf7 {[%emt 0:00:27]} 40. Nxh7 {[%emt 0:00:42]} Rh8 {[%emt 0:00:43]} 41. Qf6+ {[%emt 0:00:09]} 1-0

[Event "FIDE WCCC Open-12 2024"]
[Site "Montesilvano"]
[Date "2024.11.18"]
[Round "2.26"]
[White "Kleschevnikov, Arseny"]
[Black "Tatvidze, Davit"]
[Result "1-0"]
[ECO "E20"]
[WhiteElo "1893"]
[BlackElo "2024"]
[PlyCount "78"]
[EventDate "2024.11.18"]
[EventType "swiss"]
[EventCountry "ITA"]
[TimeControl "5400+30"]

1. d4 {[%emt 0:00:03]} Nf6 {[%emt 0:00:04]} 2. c4 {[%emt 0:00:04]} e6 {[%emt 0:00:02]} 3. Nc3 {[%emt 0:00:20]} Bb4 {[%emt 0:00:05]} 4. f3 {[%emt 0:00:10]} c5 {[%emt 0:00:21]} 5. d5 {[%emt 0:00:09]} b5 {[%emt 0:00:35]} 6. e4 {[%emt 0:00:21]} d6 {[%emt 0:00:04]} 7. Nge2 {[%emt 0:01:25]} bxc4 {[%emt 0:01:00]} 8. Nf4 {[%emt 0:01:18]} e5 {[%emt 0:00:04]} 9. Nfe2 {[%emt 0:00:06]} Nbd7 {[%emt 0:05:20]} 10. Ng3 {[%emt 0:00:52]} Nb6 {[%emt 0:01:06]} 11. Be2 {[%emt 0:01:05]} Bxc3+ {[%emt 0:04:22]} 12. bxc3 {[%emt 0:00:04]} Bd7 {[%emt 0:00:03]} 13. O-O {[%emt 0:12:46]} h5 {[%emt 0:10:34]} 14. Bg5 {[%emt 0:30:59]} h4 {[%emt 0:00:40]} 15. Nh1 {[%emt 0:03:01]} Rh5 {[%emt 0:07:01]} 16. Qc1 {[%emt 0:06:38]} Qe7 {[%emt 0:00:41]} 17. Nf2 {[%emt 0:02:26]} Rxg5 {[%emt 0:09:11]} 18. Qxg5 {[%emt 0:00:06]} Nfxd5 {[%emt 0:00:07]} 19. Qxe7+ {[%emt 0:01:18]} Nxe7 {[%emt 0:00:04]} 20. Nd1 {[%emt 0:08:51]} d5 {[%emt 0:07:11]} 21. Ne3 {[%emt 0:02:45]} Be6 {[%emt 0:00:14]} 22. exd5 {[%emt 0:00:57]} Nexd5 {[%emt 0:01:01]} 23. Nxd5 {[%emt 0:00:30]} Bxd5 {[%emt 0:00:05]} 24. a4 {[%emt 0:02:31]} Ke7 {[%emt 0:03:59]} 25. a5 {[%emt 0:01:31]} Nd7 {[%emt 0:00:25]} 26. Ra4 {[%emt 0:04:11]} Bc6 {[%emt 0:01:57]} 27. Ra2 {[%emt 0:03:20]} Bd5 {[%emt 0:01:14]} 28. Rd1 {[%emt 0:04:31]} Nf6 {[%emt 0:00:58]} 29. h3 {[%emt 0:01:06]} Rb8 {[%emt 0:20:22]} 30. Ra4 {[%emt 0:01:58]} Rb3 {[%emt 0:05:00]} 31. Bxc4 {[%emt 0:01:00]} Bxc4 {[%emt 0:00:05]} 32. Rxc4 {[%emt 0:00:03]} Nd7 {[%emt 0:00:04]} 33. Rxh4 {[%emt 0:04:22]} Rxc3 {[%emt 0:06:53]} 34. Ra4 {[%emt 0:00:47]} Ke6 {[%emt 0:08:10]} 35. Rb1 {[%emt 0:00:47]} c4 {[%emt 0:03:15]} 36. a6 {[%emt 0:02:41]} Kd6 {[%emt 0:03:39]} 37. Rab4 {[%emt 0:02:37]} Nb6 {[%emt 0:01:29]} 38. Rxb6+ {[%emt 0:00:23]} axb6 {[%emt 0:00:04]} 39. Ra1 {[%emt 0:00:04]} Kd5 {[%emt 0:02:31]} 1-0

[Event "FIDE WCCC Open-12 2024"]
[Site "Montesilvano"]
[Date "2024.11.18"]
[Round "2.27"]
[White "Vaidyanathan, Adithya"]
[Black "Fadeev, Justin Michael"]
[Result "0-1"]
[ECO "D85"]
[WhiteElo "2018"]
[BlackElo "1878"]
[PlyCount "42"]
[EventDate "2024.11.18"]
[EventType "swiss"]
[EventCountry "ITA"]
[TimeControl "5400+30"]

1. Nf3 {[%emt 0:00:02]} Nf6 {[%emt 0:00:10]} 2. d4 {[%emt 0:00:04]} g6 {[%emt 0:00:05]} 3. c4 {[%emt 0:00:05]} Bg7 {[%emt 0:00:07]} 4. Nc3 {[%emt 0:00:03]} d5 {[%emt 0:00:05]} 5. cxd5 {[%emt 0:00:04]} Nxd5 {[%emt 0:00:04]} 6. e4 {[%emt 0:00:04]} Nxc3 {[%emt 0:00:06]} 7. bxc3 {[%emt 0:00:01]} c5 {[%emt 0:00:25]} 8. Be3 {[%emt 0:00:03]} Bg4 {[%emt 0:00:12]} 9. Bb5+ {[%emt 0:01:23]} Nc6 {[%emt 0:02:10]} 10. d5 {[%emt 0:14:43]} Qa5 {[%emt 0:01:08]} 11. Qa4 {[%emt 0:07:22]} Qxc3+ {[%emt 0:30:46]} 12. Ke2 {[%emt 0:00:12]} O-O {[%emt 0:02:34]} 13. dxc6 {[%emt 0:10:21]} Qb2+ {[%emt 0:02:15]} 14. Bd2 {[%emt 0:01:32]} Rad8 {[%emt 0:01:59]} 15. Rad1 {[%emt 0:32:23]} Bh6 {[%emt 0:08:17]} 16. Bd3 {[%emt 0:06:17]} Rxd3 {[%emt 0:01:07]} 17. Kxd3 {[%emt 0:00:35]} Rd8+ {[%emt 0:00:09]} 18. Ke2 {[%emt 0:05:30]} Rxd2+ {[%emt 0:00:10]} 19. Rxd2 {[%emt 0:00:11]} Qxd2+ {[%emt 0:00:04]} 20. Kf1 {[%emt 0:00:09]} Qd3+ {[%emt 0:00:39]} 21. Ke1 {[%emt 0:00:36]} Bxf3 {[%emt 0:00:15]} 0-1

[Event "FIDE WCCC Open-12 2024"]
[Site "Montesilvano"]
[Date "2024.11.18"]
[Round "2.28"]
[White "Huseynov, Ahmed"]
[Black "Elhusseiny, Eyad"]
[Result "1-0"]
[ECO "D00"]
[WhiteElo "1886"]
[BlackElo "2017"]
[PlyCount "101"]
[EventDate "2024.11.18"]
[EventType "swiss"]
[EventCountry "ITA"]
[TimeControl "5400+30"]

1. d4 {[%emt 0:00:05]} d5 {[%emt 0:00:06]} 2. Nc3 {[%emt 0:00:06]} Nf6 {[%emt 0:00:58]} 3. Bf4 {[%emt 0:00:06]} g6 {[%emt 0:01:23]} 4. e3 {[%emt 0:00:54]} Bg7 {[%emt 0:00:09]} 5. Be2 {[%emt 0:00:32]} O-O {[%emt 0:00:40]} 6. Nf3 {[%emt 0:00:38]} c5 {[%emt 0:01:48]} 7. Ne5 {[%emt 0:02:50]} Qb6 {[%emt 0:06:43]} 8. O-O {[%emt 0:17:12]} cxd4 {[%emt 0:04:56]} 9. exd4 {[%emt 0:00:41]} Bf5 {[%emt 0:04:47]} 10. Na4 {[%emt 0:02:01]} Qa5 {[%emt 0:05:31]} 11. Nc5 {[%emt 0:02:28]} Nbd7 {[%emt 0:02:57]} 12. Ncxd7 {[%emt 0:07:06]} Nxd7 {[%emt 0:00:23]} 13. Bd3 {[%emt 0:08:30]} Nxe5 {[%emt 0:07:32]} 14. Bxe5 {[%emt 0:01:53]} Bxd3 {[%emt 0:03:29]} 15. Qxd3 {[%emt 0:00:08]} f6 {[%emt 0:02:55]} 16. Bg3 {[%emt 0:02:59]} e5 {[%emt 0:01:47]} 17. Rfe1 {[%emt 0:00:55]} e4 {[%emt 0:04:33]} 18. Qb3 {[%emt 0:20:44]} Rae8 {[%emt 0:03:42]} 19. c3 {[%emt 0:17:01]} f5 {[%emt 0:08:31]} 20. Bf4 {[%emt 0:01:51]} Qd8 {[%emt 0:03:49]} 21. Rad1 {[%emt 0:03:36]} g5 {[%emt 0:02:13]} 22. Be5 {[%emt 0:00:33]} Qd7 {[%emt 0:10:54]} 23. Re2 {[%emt 0:01:47]} Rf7 {[%emt 0:02:37]} 24. f4 {[%emt 0:04:29]} Bh6 {[%emt 0:03:10]} 25. Rf1 {[%emt 0:00:36]} Re6 {[%emt 0:02:05]} 26. g3 {[%emt 0:01:21]} Rg6 {[%emt 0:00:59]} 27. Re3 {[%emt 0:00:19]} Qd8 {[%emt 0:02:25]} 28. Rf2 {[%emt 0:00:35]} Bg7 {[%emt 0:05:20]} 29. Qd1 {[%emt 0:00:38]} Qb6 {[%emt 0:02:06]} 30. Qd2 {[%emt 0:01:00]} Qe6 {[%emt 0:01:36]} 31. Bb8 {[%emt 0:00:50]} Bf6 {[%emt 0:01:29]} 32. Qd1 {[%emt 0:00:33]} Rfg7 {[%emt 0:00:50]} 33. Qe2 {[%emt 0:01:17]} Qc8 {[%emt 0:01:02]} 34. fxg5 {[%emt 0:00:09]} Qxb8 {[%emt 0:01:50]} 35. gxf6 {[%emt 0:00:03]} Rxf6 {[%emt 0:00:16]} 36. Qh5 {[%emt 0:00:23]} Qc8 {[%emt 0:01:42]} 37. Rf4 {[%emt 0:00:17]} Qe6 {[%emt 0:00:29]} 38. Kg2 {[%emt 0:00:22]} Qb6 {[%emt 0:00:58]} 39. Rxf5 {[%emt 0:00:55]} Rxf5 {[%emt 0:00:30]} 40. Qxf5 {[%emt 0:00:06]} Qxb2+ {[%emt 0:00:04]} 41. Kh3 {[%emt 0:00:18]} Qxa2 {[%emt 0:01:11]} 42. Qc8+ {[%emt 0:00:25]} Kf7 {[%emt 0:00:05]} 43. Qxb7+ {[%emt 0:00:16]} Kf6 {[%emt 0:00:35]} 44. Qc6+ {[%emt 0:00:12]} Kg5 {[%emt 0:00:46]} 45. Qd6 {[%emt 0:00:20]} Rf7 {[%emt 0:00:35]} 46. Qe5+ {[%emt 0:00:22]} Kg6 {[%emt 0:00:17]} 47. Qe6+ {[%emt 0:00:06]} Rf6 {[%emt 0:00:32]} 48. Qg8+ {[%emt 0:00:07]} Kh6 {[%emt 0:00:07]} 49. Rxe4 {[%emt 0:00:14]} Rg6 {[%emt 0:00:27]} 50. Qf8+ {[%emt 0:00:08]} Kg5 {[%emt 0:00:04]} 51. Qf4+ {[%emt 0:00:06]} 1-0

[Event "FIDE WCCC Open-12 2024"]
[Site "Montesilvano"]
[Date "2024.11.18"]
[Round "2.29"]
[White "Sason, Noam"]
[Black "Padure, Dragos-Alexandru"]
[Result "1/2-1/2"]
[ECO "A05"]
[WhiteElo "2017"]
[BlackElo "1822"]
[PlyCount "96"]
[EventDate "2024.11.18"]
[EventType "swiss"]
[EventCountry "ITA"]
[TimeControl "5400+30"]

1. Nf3 {[%emt 0:00:02]} Nf6 {[%emt 0:01:06]} 2. g3 {[%emt 0:00:07]} g6 {[%emt 0:00:30]} 3. Bg2 {[%emt 0:00:07]} Bg7 {[%emt 0:00:09]} 4. O-O {[%emt 0:00:14]} O-O {[%emt 0:00:54]} 5. d3 {[%emt 0:00:08]} c5 {[%emt 0:05:07]} 6. e4 {[%emt 0:00:46]} d6 {[%emt 0:06:53]} 7. Nbd2 {[%emt 0:02:35]} e5 {[%emt 0:02:24]} 8. Nc4 {[%emt 0:06:02]} b5 {[%emt 0:04:52]} 9. Ne3 {[%emt 0:00:11]} Bb7 {[%emt 0:07:45]} 10. a4 {[%emt 0:01:26]} b4 {[%emt 0:03:35]} 11. Nd2 {[%emt 0:02:27]} Nc6 {[%emt 0:03:08]} 12. Ndc4 {[%emt 0:01:42]} Qc7 {[%emt 0:04:39]} 13. f4 {[%emt 1:21:13]} Rad8 {[%emt 0:08:04]} 14. Nd5 {[%emt 0:00:00]} Nxd5 {[%emt 0:14:30]} 15. exd5 {[%emt 0:01:00]} Nd4 {[%emt 0:00:22]} 16. g4 {[%emt 0:00:00]} exf4 {[%emt 0:03:35]} 17. Bxf4 {[%emt 0:00:00]} Rfe8 {[%emt 0:01:02]} 18. Bg5 {[%emt 0:00:00]} Rd7 {[%emt 0:01:12]} 19. Be4 {[%emt 0:00:00]} Ba6 {[%emt 0:05:14]} 20. Re1 {[%emt 0:00:00]} h6 {[%emt 0:05:37]} 21. Bh4 {[%emt 0:00:00]} Bxc4 {[%emt 0:08:36]} 22. dxc4 {[%emt 0:00:00]} f5 {[%emt 0:00:54]} 23. gxf5 {[%emt 0:00:00]} gxf5 {[%emt 0:00:06]} 24. Bg2 {[%emt 0:00:00]} Rxe1+ {[%emt 0:00:34]} 25. Qxe1 {[%emt 0:00:00]} Nxc2 {[%emt 0:01:23]} 26. Qe8+ {[%emt 0:00:00]} Kh7 {[%emt 0:00:07]} 27. Bh3 {[%emt 0:00:00]} Rf7 {[%emt 0:01:16]} 28. Rf1 {[%emt 0:00:00]} Nd4 {[%emt 0:02:41]} 29. Kh1 {[%emt 0:00:00]} Qd7 {[%emt 0:02:04]} 30. Qxd7 {[%emt 0:00:00]} Rxd7 {[%emt 0:00:05]} 31. Rxf5 {[%emt 0:00:00]} Rb7 {[%emt 0:02:22]} 32. Rf2 {[%emt 0:00:00]} Be5 {[%emt 0:01:07]} 33. Kg2 {[%emt 0:00:00]} Kg7 {[%emt 0:02:12]} 34. Bg3 {[%emt 0:00:00]} Bxg3 {[%emt 0:00:43]} 35. hxg3 {[%emt 0:00:19]} b3 {[%emt 0:01:43]} 36. Be6 {[%emt 0:02:28]} Re7 {[%emt 0:00:46]} 37. Rd2 {[%emt 0:03:22]} Kf6 {[%emt 0:01:02]} 38. Rd3 {[%emt 0:01:39]} Rb7 {[%emt 0:00:31]} 39. Rc3 {[%emt 0:00:06]} Rb4 {[%emt 0:00:21]} 40. Bd7 {[%emt 0:00:15]} Rb7 {[%emt 0:00:39]} 41. Bg4 {[%emt 0:01:06]} Kg5 {[%emt 0:00:27]} 42. Bd1 {[%emt 0:01:13]} Rb4 {[%emt 0:00:13]} 43. a5 {[%emt 0:00:28]} Rb8 {[%emt 0:00:37]} 44. Kf2 {[%emt 0:00:43]} Kf5 {[%emt 0:00:24]} 45. Re3 {[%emt 0:00:55]} Kf6 {[%emt 0:00:34]} 46. Rc3 {[%emt 0:00:14]} Kf5 {[%emt 0:00:38]} 47. Rd3 {[%emt 0:03:12]} Rb4 {[%emt 0:00:29]} 48. Rc3 {[%emt 0:00:00]} Rb8 {[%emt 0:00:37]} 1/2-1/2